bitfinex/quotes_BTCUSD_20220120
["timestamp","ask_amount","ask_price","bid_price","bid_amount"]
[1642701232213,0.13730366,43062.0,43061.0,1.37854968]
[1642701232414,0.13730366,43062.0,43061.0,0.32854968]
[1642701232614,0.13730366,43062.0,43061.0,0.87854968]
[1642701232817,0.13730366,43062.0,43061.0,1.04564395]
[1642701233014,0.13730366,43062.0,43061.0,0.49564395]
[1642701233871,0.13730366,43062.0,43061.0,0.51864395]
[1642701233872,0.13930366,43062.0,43061.0,0.51864395]
[1642701234271,0.12075366,43062.0,43061.0,0.51864395]
[1642701235175,0.11875366,43062.0,43061.0,0.21309427]
[1642701235771,0.11875366,43062.0,43061.0,0.22709427]
[1642701236574,0.11875366,43062.0,43061.0,0.45692644]
[1642701237017,0.11875366,43062.0,43061.0,0.046]
[1642701237816,0.11875366,43062.0,43061.0,0.059]
[1642701239221,0.11875366,43062.0,43061.0,0.046]
[1642701239921,0.11875366,43062.0,43061.0,0.056]
[1642701240524,0.11875366,43062.0,43061.0,0.506]
[1642701240768,0.068357,43062.0,43061.0,0.506]
[1642701241176,0.068357,43062.0,43061.0,0.496]
[1642701241768,0.068357,43062.0,43061.0,0.055]
[1642701242670,0.068357,43062.0,43061.0,0.009]
[1642701242870,0.447039,43062.0,43061.0,0.009]
[1642701243074,0.447039,43062.0,43056.0,7.431e-05]
[1642701243269,0.447039,43062.0,43055.0,0.19079704]
[1642701243270,0.2953472,43062.0,43055.0,0.19079704]
[1642701243472,0.28088519,43059.0,43055.0,0.19072273]
[1642701243671,0.28088519,43059.0,43056.0,6.876e-05]
[1642701244069,0.28088519,43059.0,43056.0,0.00014307]
[1642701244269,0.28088519,43059.0,43056.0,6.876e-05]
[1642701244529,0.073357,43062.0,43056.0,0.00014307]
[1642701244730,0.073357,43062.0,43056.0,6.876e-05]
[1642701244929,0.073357,43062.0,43056.0,0.00014307]
[1642701245129,0.18080474,43061.0,43056.0,6.876e-05]
[1642701245331,0.18080474,43061.0,43056.0,0.00014307]
[1642701245533,0.83290296,43057.0,43056.0,6.876e-05]
[1642701245735,0.33290296,43057.0,43056.0,0.00014307]
[1642701246031,0.33290296,43057.0,43056.0,0.01014307]
[1642701246530,0.34290296,43057.0,43056.0,0.01014307]
[1642701247032,0.34290296,43057.0,43056.0,6.876e-05]
[1642701247033,0.34266598,43057.0,43056.0,6.876e-05]
[1642701247332,0.01,43057.0,43056.0,0.54159582]
[1642701247532,0.01,43057.0,43056.0,0.50006876]
[1642701247931,0.016,43057.0,43056.0,0.51906876]
[1642701248171,0.016,43057.0,43056.0,0.94775076]
[1642701248372,0.016,43057.0,43056.0,1.38858078]
[1642701249169,0.01,43057.0,43056.0,1.36958078]
[1642701249572,0.01,43057.0,43056.0,1.47463077]
[1642701249970,0.014,43057.0,43056.0,1.49263077]
[1642701251070,0.01,43057.0,43056.0,1.47463077]
[1642701251472,0.01,43057.0,43056.0,1.36958078]
[1642701251921,0.01,43057.0,43056.0,1.63058078]
[1642701253219,0.01,43057.0,43056.0,1.61558078]
[1642701253822,0.01,43057.0,43056.0,1.63158078]
[1642701254624,0.01,43057.0,43056.0,1.63286138]
[1642701255225,0.01,43057.0,43056.0,1.61686138]
[1642701255671,0.01,43057.0,43056.0,1.11686138]
[1642701255871,0.01,43057.0,43056.0,0.93386138]
[1642701256075,0.01,43057.0,43056.0,0.93393569]
[1642701256773,0.01,43057.0,43056.0,0.70752627]
[1642701256973,0.01,43057.0,43056.0,0.32756367]
[1642701257172,0.01,43057.0,43056.0,0.31056367]
[1642701257374,0.01,43057.0,43056.0,0.09614307]
[1642701257771,0.01,43057.0,43056.0,0.00014307]
[1642701257974,0.01,43057.0,43056.0,0.03014307]
[1642701258172,0.01,43057.0,43056.0,0.58014307]
[1642701258375,0.00020427,43066.0,43058.0,1.15]
[1642701258578,0.00020427,43066.0,43059.0,0.67636458]
[1642701258774,8.595e-05,43065.0,43062.0,0.00120195]
[1642701258973,8.595e-05,43065.0,43063.0,0.046]
[1642701259174,6.876e-05,43064.0,43063.0,1.24264142]
[1642701259425,0.18186587,43070.0,43063.0,0.55558426]
[1642701259626,0.00020427,43069.0,43063.0,0.55558426]
[1642701259825,8.595e-05,43069.0,43063.0,0.56358426]
[1642701260028,2.31933073,43068.0,43063.0,0.56358426]
[1642701260326,0.01,43064.0,43063.0,0.054]
[1642701260530,0.337573,43064.0,43063.0,0.054]
[1642701260726,0.337573,43064.0,43063.0,0.008]
[1642701261026,0.52611987,43064.0,43063.0,0.008]
[1642701261231,0.52611987,43064.0,43057.0,0.046]
[1642701261232,0.79437513,43064.0,43057.0,0.046]
[1642701261426,0.79437513,43064.0,43058.0,0.0005271]
[1642701261625,0.79437513,43064.0,43058.0,0.00063024]
[1642701261626,0.67420184,43064.0,43058.0,0.00063024]
[1642701261826,0.17431413,43063.0,43059.0,8.595e-05]
[1642701262827,0.17431413,43063.0,43058.0,0.00103581]
[1642701263027,0.17431413,43063.0,43059.0,8.595e-05]
[1642701264072,0.17431413,43063.0,43058.0,0.00103581]
[1642701264272,0.17431413,43063.0,43059.0,8.595e-05]
[1642701265172,0.17431413,43063.0,43058.0,0.00103581]
[1642701265574,0.17431413,43063.0,43059.0,8.595e-05]
[1642701266575,0.01,43060.0,43059.0,8.595e-05]
[1642701266776,0.01,43060.0,43059.0,0.28431648]
[1642701267029,0.01,43060.0,43059.0,0.33431648]
[1642701267832,0.01,43060.0,43059.0,0.38142854]
[1642701268734,0.01,43060.0,43059.0,0.33142854]
[1642701269137,0.01,43060.0,43059.0,0.32042854]
[1642701269436,0.01,43060.0,43059.0,0.13775677]
[1642701269838,0.01,43060.0,43059.0,0.14875677]
[1642701271272,0.01,43060.0,43059.0,0.13775677]
[1642701271478,0.01,43060.0,43059.0,0.03619801]
[1642701271872,0.01,43060.0,43059.0,0.04719801]
[1642701272172,0.01,43060.0,43059.0,0.63978376]
[1642701272372,0.01,43060.0,43059.0,0.54719801]
[1642701272572,0.01,43060.0,43059.0,0.04719801]
[1642701273173,0.01,43060.0,43059.0,0.03619801]
[1642701273875,0.01,43060.0,43059.0,0.04719801]
[1642701274826,0.01,43060.0,43059.0,0.04219801]
[1642701275026,0.01,43060.0,43059.0,0.39219801]
[1642701275226,0.01,43060.0,43059.0,0.38119801]
[1642701275428,0.01,43060.0,43059.0,0.43119801]
[1642701276026,0.34162884,43064.0,43060.0,0.75]
[1642701276228,0.34162884,43064.0,43059.0,0.09019801]
[1642701276633,0.34162884,43064.0,43060.0,6.876e-05]
[1642701277028,0.55736394,43064.0,43060.0,6.876e-05]
[1642701277429,0.55736394,43064.0,43059.0,0.03111206]
[1642701277430,0.55736394,43064.0,43059.0,0.02618082]
[1642701278273,0.23365056,43063.0,43059.0,0.02618082]
[1642701278672,0.55736394,43064.0,43059.0,0.02618082]
[1642701279276,0.34162884,43064.0,43059.0,0.02618082]
[1642701279473,0.34162884,43064.0,43059.0,0.05]
[1642701280074,0.34162884,43064.0,43059.0,0.053]
[1642701281275,0.34162884,43064.0,43059.0,0.05]
[1642701282020,0.34162884,43064.0,43059.0,0.09637656]
[1642701283720,0.34162884,43064.0,43059.0,0.04337656]
[1642701283921,0.34162884,43064.0,43059.0,0.04637656]
[1642701285322,0.34162884,43064.0,43059.0,0.04337656]
[1642701285983,0.34162884,43064.0,43059.0,0.04737656]
[1642701287183,0.34162884,43064.0,43059.0,0.04337656]
[1642701287986,0.34162884,43064.0,43059.0,0.04737656]
[1642701287987,0.11841236,43063.0,43059.0,0.04737656]
[1642701288688,0.34162884,43064.0,43059.0,0.04737656]
[1642701289427,0.24440818,43062.0,43059.0,0.04337656]
[1642701289630,0.00123804,43060.0,43058.0,0.00093267]
[1642701289825,1.52988412,43059.0,43058.0,0.00093267]
[1642701290024,1.62988412,43059.0,43051.0,7.345e-05]
[1642701290224,0.00122054,43052.0,43050.0,7.345e-05]
[1642701290425,0.00122054,43052.0,43050.0,0.00373141]
[1642701290426,0.25025725,43051.0,43050.0,0.00373141]
[1642701290624,0.25025725,43051.0,43050.0,0.00380486]
[1642701290837,0.25025725,43051.0,43050.0,0.00397676]
[1642701291225,0.25025725,43051.0,43050.0,0.196168]
[1642701292025,0.49303324,43051.0,43050.0,0.196168]
[1642701292231,0.49303324,43051.0,43050.0,0.00024535]
[1642701292427,0.56256324,43051.0,43050.0,0.00024535]
[1642701292628,0.56382615,43051.0,43050.0,0.00024535]
[1642701293031,0.32105016,43051.0,43050.0,0.00024535]
[1642701293479,0.81818224,43051.0,43050.0,0.00024535]
[1642701293879,0.69973216,43051.0,43050.0,0.00024535]
[1642701294678,0.79973216,43051.0,43050.0,0.00024535]
[1642701294883,1.15259677,43051.0,43050.0,0.00024535]
[1642701295280,0.91818537,43051.0,43050.0,0.00024535]
[1642701295483,1.15046958,43051.0,43050.0,0.00024535]
[1642701295980,0.91818537,43051.0,43050.0,0.00024535]
[1642701296182,0.96418537,43051.0,43050.0,0.00024535]
[1642701296580,1.19305717,43051.0,43050.0,0.00024535]
[1642701296780,1.1437591,43051.0,43050.0,0.00024535]
[1642701299034,1.1937591,43051.0,43050.0,0.00024535]
[1642701299435,1.07530589,43051.0,43050.0,0.00024535]
[1642701299636,1.18443165,43051.0,43050.0,0.00024535]
[1642701300040,1.06597589,43051.0,43050.0,0.00024535]
[1642701300236,1.03687589,43051.0,43050.0,0.00024535]
[1642701300438,0.85603925,43051.0,43050.0,0.00024535]
[1642701300877,0.85603925,43051.0,43049.0,0.03303746]
[1642701300878,0.97449438,43051.0,43049.0,0.02828281]
[1642701301078,0.327573,43050.0,43049.0,0.02828281]
[1642701301276,0.40782725,43051.0,43049.0,0.02828281]
[1642701301878,0.29625725,43051.0,43049.0,0.02828281]
[1642701302079,0.26625725,43051.0,43049.0,0.02828281]
[1642701302879,0.60972224,43050.0,43049.0,0.02828281]
[1642701303280,0.70972224,43050.0,43049.0,0.02828281]
[1642701304081,0.72672224,43050.0,43049.0,0.02828281]
[1642701304828,0.495682,43050.0,43049.0,0.02828281]
[1642701305231,0.478682,43050.0,43049.0,0.02828281]
[1642701305429,0.67510048,43050.0,43049.0,0.02828281]
[1642701305628,0.47991195,43050.0,43049.0,0.02828281]
[1642701305829,0.59838189,43050.0,43049.0,0.02828281]
[1642701306028,0.64738189,43050.0,43049.0,0.02828281]
[1642701306432,0.65895189,43050.0,43049.0,0.02828281]
[1642701306627,0.70895189,43050.0,43049.0,0.02828281]
[1642701307231,0.65995189,43050.0,43049.0,0.02828281]
[1642701307431,0.70472194,43050.0,43049.0,0.02828281]
[1642701307833,0.70596003,43050.0,43049.0,0.02828281]
[1642701308032,0.72196003,43050.0,43049.0,0.02828281]
[1642701308680,0.77196003,43050.0,43049.0,0.02828281]
[1642701309279,0.75596003,43050.0,43049.0,0.02828281]
[1642701310079,0.77196003,43050.0,43049.0,0.02828281]
[1642701310881,0.72196003,43050.0,43049.0,0.02828281]
[1642701311380,0.70596003,43050.0,43049.0,0.02828281]
[1642701312029,0.72196003,43050.0,43049.0,0.02828281]
[1642701313134,0.72196003,43050.0,43049.0,0.02835584]
[1642701313330,0.70596003,43050.0,43049.0,0.02835584]
[1642701313732,1.27216903,43050.0,43049.0,0.02835584]
[1642701313932,0.70596003,43050.0,43049.0,0.02835584]
[1642701314134,0.87692861,43050.0,43049.0,0.02835584]
[1642701315696,0.99313661,43050.0,43049.0,0.02835584]
[1642701315891,0.98013661,43050.0,43049.0,0.02835584]
[1642701316091,0.83616803,43050.0,43049.0,0.02835584]
[1642701316501,1.1,43049.0,43048.0,0.0011]
[1642701316694,1.1,43049.0,43042.0,0.00071925]
[1642701316695,1.15,43047.0,43042.0,0.00071925]
[1642701316894,0.38697448,43043.0,43042.0,0.00071925]
[1642701317092,0.38697448,43043.0,43041.0,0.10663551]
[1642701317093,0.5,43042.0,43041.0,0.10235476]
[1642701317292,0.61474887,43042.0,43041.0,0.08235476]
[1642701317493,1.21852155,43042.0,43041.0,0.08250947]
[1642701317696,1.43371092,43042.0,43041.0,0.07963203]
[1642701318094,1.44771092,43042.0,43041.0,0.07963203]
[1642701318298,1.49496705,43042.0,43041.0,0.07963203]
[1642701318895,1.50653705,43042.0,43041.0,0.07963203]
[1642701319095,1.55653705,43042.0,43041.0,0.07963203]
[1642701319435,1.54253705,43042.0,43041.0,0.07963203]
[1642701319634,1.66104133,43042.0,43041.0,0.07963203]
[1642701319837,1.66104133,43042.0,43041.0,0.03423772]
[1642701320036,1.72204133,43042.0,43041.0,0.03423772]
[1642701320435,1.67204133,43042.0,43041.0,0.03423772]
[1642701321135,1.33834768,43042.0,43041.0,0.03423772]
[1642701321335,1.17734768,43042.0,43041.0,0.03423772]
[1642701322135,1.19034768,43042.0,43041.0,0.03423772]
[1642701322738,1.29034768,43042.0,43041.0,0.03423772]
[1642701323379,1.27734768,43042.0,43041.0,0.03423772]
[1642701324179,1.34134768,43042.0,43041.0,0.03423772]
[1642701324582,1.29134768,43042.0,43041.0,0.03423772]
[1642701325180,1.34134768,43042.0,43041.0,0.03423772]
[1642701325380,1.32734768,43042.0,43041.0,0.03423772]
[1642701326086,0.78631887,43042.0,43041.0,0.03423772]
[1642701326382,0.78631887,43042.0,43041.0,0.06881338]
[1642701326383,0.62874887,43042.0,43041.0,0.06881338]
[1642701326583,0.25006687,43042.0,43041.0,0.06881338]
[1642701327026,0.25006687,43042.0,43041.0,0.03423772]
[1642701327229,0.48912144,43042.0,43041.0,0.03423772]
[1642701327830,0.48669144,43042.0,43041.0,0.03423772]
[1642701328027,0.49312144,43042.0,43041.0,0.03423772]
[1642701328428,0.25406687,43042.0,43041.0,0.03423772]
[1642701329229,0.23106687,43042.0,43041.0,0.03423772]
[1642701329829,0.29263687,43042.0,43041.0,0.03423772]
[1642701330029,0.31163687,43042.0,43041.0,0.03423772]
[1642701330429,0.41163687,43042.0,43041.0,0.03423772]
[1642701330681,0.79031887,43042.0,43041.0,0.03423772]
[1642701331484,0.77131887,43042.0,43041.0,0.03423772]
[1642701332081,0.78831887,43042.0,43041.0,0.03423772]
[1642701332682,0.72674887,43042.0,43041.0,0.03423772]
[1642701332886,0.378682,43038.0,43034.0,0.0022]
[1642701333085,0.378682,43038.0,43034.0,0.00234588]
[1642701333086,0.00121682,43036.0,43034.0,0.00234588]
[1642701333284,0.00121682,43036.0,43035.0,0.00010314]
[1642701333285,0.046,43036.0,43035.0,0.00010314]
[1642701333484,0.03240347,43036.0,43035.0,0.00024902]
[1642701333685,0.02492347,43036.0,43035.0,0.00010314]
[1642701333890,0.5088588,43036.0,43035.0,0.00024902]
[1642701334090,0.5374288,43036.0,43035.0,0.00010314]
[1642701334286,0.5374288,43036.0,43035.0,0.00024902]
[1642701334531,0.5374288,43036.0,43035.0,0.00010314]
[1642701334731,0.5374288,43036.0,43032.0,0.02230523]
[1642701335331,0.24900472,43035.0,43032.0,0.02230523]
[1642701335733,0.01157,43033.0,43032.0,0.02230523]
[1642701335934,0.24900472,43035.0,43032.0,0.02283085]
[1642701336233,0.26600472,43035.0,43032.0,0.02283085]
[1642701336735,0.01157,43033.0,43032.0,0.02283085]
[1642701336935,0.01157,43033.0,43032.0,0.02230523]
[1642701338178,0.02757,43033.0,43032.0,0.02230523]
[1642701339479,0.01157,43033.0,43032.0,0.02230523]
[1642701340279,0.02757,43033.0,43032.0,0.02230523]
[1642701341279,0.01157,43033.0,43032.0,0.02230523]
[1642701342136,0.02757,43033.0,43032.0,0.02230523]
[1642701342536,0.02123402,43033.0,43032.0,0.02230523]
[1642701342936,0.016,43033.0,43032.0,0.02230523]
[1642701343136,0.02761,43033.0,43032.0,0.02230523]
[1642701343337,0.02761,43033.0,43032.0,0.06146561]
[1642701343740,0.02761,43033.0,43032.0,3.98911161]
[1642701344038,0.01161,43033.0,43032.0,3.98911161]
[1642701344242,0.01161,43033.0,43029.0,2.99176682]
[1642701344243,1.0,43032.0,43029.0,2.99176682]
[1642701344441,1.0,43032.0,43020.0,0.0011]
[1642701344442,1.15467,43028.0,43019.0,0.02613957]
[1642701344643,0.378682,43024.0,43019.0,0.02613957]
[1642701344839,0.29602074,43027.0,43019.0,0.02613957]
[1642701344840,1.377573,43020.0,43019.0,0.02613957]
[1642701345041,0.60969507,43020.0,43019.0,3.957e-05]
[1642701345341,0.385183,43020.0,43019.0,0.00031461]
[1642701345881,0.373573,43020.0,43019.0,0.00031461]
[1642701346082,0.389573,43020.0,43019.0,0.00031461]
[1642701346384,0.058126,43026.0,43020.0,0.54639479]
[1642701346582,0.42,43028.0,43022.0,0.03734164]
[1642701346787,0.378647,43028.0,43022.0,1.18734164]
[1642701346985,0.378647,43028.0,43023.0,0.00020628]
[1642701347183,0.378647,43028.0,43025.0,0.24045358]
[1642701347382,0.378647,43028.0,43027.0,0.79188719]
[1642701347582,0.378647,43028.0,43027.0,0.34305574]
[1642701347782,0.378647,43028.0,43027.0,0.34326612]
[1642701348083,0.378647,43028.0,43027.0,0.24209757]
[1642701348286,0.415647,43028.0,43027.0,0.24202471]
[1642701348484,0.415647,43028.0,43027.0,0.34289135]
[1642701349084,0.415647,43028.0,43027.0,0.34281849]
[1642701349436,0.378647,43028.0,43027.0,1.63477067]
[1642701349630,0.378647,43028.0,43027.0,1.63484353]
[1642701349932,0.00119184,43030.0,43027.0,1.63484353]
[1642701350129,2.098205,43042.0,43029.0,0.10024379]
[1642701350130,1.262115,43042.0,43029.0,0.10024379]
[1642701350331,0.98186399,43056.0,43029.0,0.10024379]
[1642701350332,0.01161,43056.0,43043.0,0.34386871]
[1642701350533,0.01161,43056.0,43048.0,0.00121376]
[1642701350732,0.01161,43056.0,43043.0,0.34386871]
[1642701350733,0.11848846,43055.0,43043.0,0.34386871]
[1642701350930,0.19539198,43050.0,43044.0,0.00128457]
[1642701351330,0.11848846,43049.0,43044.0,0.00128457]
[1642701351531,0.11848846,43049.0,43048.0,0.23958606]
[1642701351735,0.11848846,43049.0,43043.0,0.34386871]
[1642701352129,0.00022347,43048.0,43043.0,0.34386871]
[1642701352530,0.00020628,43047.0,43043.0,0.34386871]
[1642701352930,0.00018909,43046.0,43043.0,0.34386871]
[1642701353180,0.058098,43045.0,43043.0,0.54228867]
[1642701353380,0.0582699,43045.0,43043.0,0.54228867]
[1642701353581,0.00015471,43044.0,43043.0,0.54228867]
[1642701353980,0.00015471,43044.0,43043.0,0.54222867]
[1642701354181,0.06015471,43044.0,43043.0,0.54222867]
[1642701355483,0.00015471,43044.0,43043.0,0.54222867]
[1642701356281,0.06115471,43044.0,43043.0,0.54222867]
[1642701357133,0.06115471,43044.0,43043.0,0.19841996]
[1642701357329,0.00015471,43044.0,43043.0,0.19841996]
[1642701358129,0.08415471,43044.0,43043.0,0.99844423]
[1642701358328,0.08415471,43044.0,43043.0,0.49844423]
[1642701359130,0.08415471,43044.0,43043.0,0.79844423]
[1642701359329,0.08415471,43044.0,43043.0,0.49844423]
[1642701359529,0.00015471,43044.0,43043.0,0.49844423]
[1642701360129,0.01615471,43044.0,43043.0,0.50144423]
[1642701360532,0.01615471,43044.0,43043.0,0.20141996]
[1642701361185,1.78187883,43044.0,43043.0,0.003]
[1642701361984,1.76587883,43044.0,43039.0,0.0001457]
[1642701362184,0.21388867,43042.0,43038.0,0.04476492]
[1642701362489,0.00010314,43041.0,43038.0,0.04476492]
[1642701362684,0.00010314,43041.0,43038.0,0.04491062]
[1642701362985,8.595e-05,43040.0,43038.0,0.04491062]
[1642701363385,6.876e-05,43039.0,43038.0,0.04491062]
[1642701364087,6.876e-05,43039.0,43038.0,1.19491062]
[1642701364286,0.02906876,43039.0,43038.0,1.20091062]
[1642701364542,0.02906876,43039.0,43038.0,1.40165896]
[1642701365145,0.02906876,43039.0,43038.0,1.20091062]
[1642701365541,6.876e-05,43039.0,43038.0,1.19491062]
[1642701365741,6.876e-05,43039.0,43038.0,1.37809586]
[1642701366144,0.01806876,43039.0,43038.0,1.38809586]
[1642701366344,0.00474162,43039.0,43038.0,1.38809586]
[1642701366550,0.00119171,43041.0,43039.0,1.18777775]
[1642701366744,0.00119171,43041.0,43040.0,1.98868445]
[1642701366943,0.4201,43050.0,43040.0,1.98868445]
[1642701366944,0.4201,43050.0,43041.0,0.0357494]
[1642701367147,0.4201,43050.0,43049.0,0.00129297]
[1642701367546,0.4201,43050.0,43049.0,1.37493584]
[1642701368182,0.4201,43050.0,43049.0,1.37893584]
[1642701368783,0.4201,43050.0,43049.0,0.24751292]
[1642701368983,2.1525272,43050.0,43049.0,0.24751292]
[1642701369585,2.1525272,43050.0,43049.0,0.24221995]
[1642701370983,0.4201,43050.0,43049.0,0.24221995]
[1642701371932,0.4201,43050.0,43044.0,0.04183209]
[1642701372134,0.058093,43049.0,43044.0,0.04183209]
[1642701372339,0.0582649,43049.0,43044.0,0.04183209]
[1642701372537,0.0582649,43049.0,43043.0,0.18138697]
[1642701372738,0.0582649,43049.0,43043.0,0.2146054]
[1642701372943,0.0001719,43049.0,43043.0,0.2146054]
[1642701373136,0.00136351,43049.0,43044.0,0.30778723]
[1642701373636,0.00136351,43049.0,43045.0,0.21265294]
[1642701374038,0.0001719,43049.0,43045.0,0.21265294]
[1642701374239,0.0013635,43049.0,43045.0,0.21265294]
[1642701375240,0.0001719,43049.0,43045.0,0.21265294]
[1642701375443,0.0013635,43049.0,43045.0,0.21265294]
[1642701376286,0.0013635,43049.0,43046.0,0.00120894]
[1642701376486,0.0001719,43049.0,43046.0,0.00120894]
[1642701376685,0.0013635,43049.0,43046.0,0.00120894]
[1642701377687,0.0001719,43049.0,43046.0,0.00120894]
[1642701378287,0.0001719,43049.0,43046.0,0.00320894]
[1642701379428,0.0001719,43049.0,43046.0,0.00120894]
[1642701380229,0.0001719,43049.0,43046.0,0.00220894]
[1642701381429,0.0001719,43049.0,43046.0,0.00120894]
[1642701381631,0.0001719,43049.0,43046.0,0.04535697]
[1642701381931,0.0001719,43049.0,43046.0,0.70184341]
[1642701382130,0.0001719,43049.0,43046.0,0.40120894]
[1642701382430,0.0001719,43049.0,43046.0,0.40520894]
[1642701383482,0.0001719,43049.0,43046.0,0.40120894]
[1642701384284,0.0001719,43049.0,43046.0,0.40520894]
[1642701384488,0.0001719,43049.0,43047.0,0.32181485]
[1642701384685,0.0001719,43049.0,43048.0,0.04683603]
[1642701384885,0.345873,43061.0,43050.0,1.15]
[1642701385084,0.345873,43061.0,43054.0,0.00120789]
[1642701385085,0.2878,43061.0,43054.0,0.00120789]
[1642701385285,0.00018909,43060.0,43054.0,0.00120789]
[1642701385486,0.00018909,43060.0,43058.0,0.19028499]
[1642701385684,0.00010196,43062.0,43059.0,0.19989955]
[1642701385888,0.00010196,43063.0,43059.0,0.19989955]
[1642701386186,0.00024066,43063.0,43059.0,0.19989955]
[1642701386384,0.00067999,43061.0,43059.0,0.19989955]
[1642701386934,0.00018909,43060.0,43059.0,0.19989955]
[1642701387738,0.00018909,43060.0,43059.0,0.64989955]
[1642701387937,0.00018909,43060.0,43059.0,0.19989955]
[1642701388137,0.00018909,43060.0,43059.0,0.37501233]
[1642701388339,0.00018909,43060.0,43059.0,0.64052134]
[1642701388645,0.00018909,43060.0,43059.0,0.75389033]
[1642701388837,0.00018909,43060.0,43059.0,1.60389033]
[1642701389438,0.00018909,43060.0,43059.0,0.75389033]
[1642701389639,0.00018909,43060.0,43059.0,0.37501233]
[1642701389839,0.00018909,43060.0,43059.0,0.97501233]
[1642701390241,0.00018909,43060.0,43059.0,0.98101233]
[1642701390440,0.00018909,43060.0,43059.0,0.38101233]
[1642701390684,0.00018909,43060.0,43059.0,0.20589955]
[1642701391687,0.00018909,43060.0,43059.0,0.76705156]
[1642701391886,0.00018909,43060.0,43059.0,0.36705156]
[1642701392287,0.00018909,43060.0,43059.0,0.36505156]
[1642701392688,0.00018909,43060.0,43059.0,0.20389955]
[1642701393689,0.00018909,43060.0,43059.0,0.64989955]
[1642701393895,0.00018909,43060.0,43059.0,1.31971014]
[1642701394091,0.00018909,43060.0,43059.0,1.71971014]
[1642701394292,0.00018909,43060.0,43059.0,1.72571014]
[1642701394554,0.00018909,43060.0,43059.0,1.48077755]
[1642701394757,0.00018909,43060.0,43059.0,2.38077755]
[1642701395256,0.43,43070.0,43069.0,0.00125235]
[1642701395454,0.43,43070.0,43069.0,1.23990235]
[1642701395654,0.43,43070.0,43069.0,1.61878035]
[1642701396053,0.43,43070.0,43069.0,1.83542234]
[1642701396255,0.43,43070.0,43069.0,2.63722196]
[1642701396460,0.0001021,43078.0,43071.0,0.2]
[1642701396657,0.0001021,43075.0,43072.0,0.424878]
[1642701396856,0.00025785,43075.0,43074.0,1.55127345]
[1642701397056,0.00025785,43075.0,43074.0,1.97615145]
[1642701398056,0.00025785,43075.0,43074.0,0.424878]
[1642701398285,0.00025785,43075.0,43074.0,0.33618426]
[1642701398489,0.00025785,43075.0,43074.0,0.054]
[1642701398686,0.00025785,43075.0,43074.0,1.582878]
[1642701398885,0.00025785,43075.0,43074.0,0.432878]
[1642701399485,0.00025785,43075.0,43074.0,0.424878]
[1642701399685,0.00025785,43075.0,43074.0,1.024878]
[1642701400284,0.00025785,43075.0,43074.0,1.031878]
[1642701400684,0.00025785,43075.0,43074.0,0.431878]
[1642701401691,0.00025785,43075.0,43074.0,0.424878]
[1642701402336,0.00025785,43075.0,43074.0,0.432878]
[1642701403538,0.00025785,43075.0,43074.0,0.974878]
[1642701403738,0.00025785,43075.0,43074.0,0.424878]
[1642701404142,0.05459422,43081.0,43074.0,0.424878]
[1642701404343,0.00010208,43076.0,43074.0,0.055]
[1642701404540,0.00119127,43077.0,43074.0,0.0904336]
[1642701404742,0.00010208,43076.0,43074.0,0.0904336]
[1642701404941,0.00119127,43077.0,43074.0,0.055]
[1642701405140,0.00010208,43076.0,43074.0,0.055]
[1642701405340,8.596e-05,43080.0,43074.0,0.055]
[1642701405540,0.00010208,43076.0,43074.0,0.055]
[1642701405787,0.058047,43078.0,43074.0,0.055]
[1642701405986,0.05814908,43078.0,43076.0,0.28334031]
[1642701406190,0.00010208,43078.0,43076.0,0.49868234]
[1642701406390,0.00074277,43079.0,43077.0,0.26036263]
[1642701406588,0.00010208,43078.0,43077.0,0.08651282]
[1642701406788,6.877e-05,43079.0,43077.0,0.046]
[1642701406789,0.0007428,43079.0,43077.0,0.046]
[1642701407190,0.0007428,43079.0,43078.0,0.16017295]
[1642701407392,0.0007428,43079.0,43078.0,0.42195918]
[1642701407591,0.0007428,43079.0,43078.0,0.16017295]
[1642701407789,6.877e-05,43079.0,43078.0,0.16017295]
[1642701408092,6.877e-05,43079.0,43076.0,0.49868234]
[1642701408690,6.877e-05,43079.0,43075.0,0.00129528]
[1642701409089,6.877e-05,43079.0,43072.0,0.26356439]
[1642701409291,6.877e-05,43079.0,43072.0,0.52850193]
[1642701409292,0.00017085,43079.0,43072.0,0.52850193]
[1642701409536,6.877e-05,43079.0,43072.0,0.26356439]
[1642701409732,0.00017085,43079.0,43072.0,0.26356439]
[1642701409936,6.877e-05,43079.0,43075.0,0.26244583]
[1642701410133,0.00017085,43079.0,43074.0,0.4]
[1642701410335,0.02125999,43079.0,43074.0,0.4]
[1642701410735,0.02136207,43079.0,43074.0,0.4]
[1642701410935,0.02125999,43079.0,43074.0,0.4]
[1642701411134,0.02125999,43079.0,43075.0,0.18242924]
[1642701411336,0.02017085,43079.0,43075.0,0.18242924]
[1642701411536,0.00126001,43079.0,43076.0,0.22672079]
[1642701411936,0.00126001,43079.0,43078.0,0.78999586]
[1642701412142,0.00126001,43079.0,43078.0,0.7912808]
[1642701412335,0.00126001,43079.0,43078.0,1.1701588]
[1642701412336,0.01026001,43079.0,43078.0,1.1701588]
[1642701412537,0.01026001,43079.0,43078.0,0.33999586]
[1642701412538,0.00906877,43079.0,43078.0,0.33999586]
[1642701412937,2.00906877,43079.0,43078.0,0.33999586]
[1642701414187,2.00006877,43079.0,43078.0,0.33999586]
[1642701414385,2.00306877,43079.0,43078.0,0.35024996]
[1642701414584,2.00306877,43079.0,43078.0,0.75024996]
[1642701415386,1.88987048,43079.0,43078.0,1.70024996]
[1642701415585,1.88987048,43079.0,43078.0,0.38599586]
[1642701415785,1.88687048,43079.0,43078.0,0.38599586]
[1642701416486,1.88987048,43079.0,43078.0,1.04599586]
[1642701416687,1.88987048,43079.0,43078.0,0.39599586]
[1642701417543,1.88987048,43079.0,43078.0,0.79599586]
[1642701417740,1.88687048,43079.0,43078.0,0.78599586]
[1642701417941,1.88687048,43079.0,43078.0,0.38599586]
[1642701418242,1.88687048,43079.0,43078.0,0.33999586]
[1642701418443,1.88687048,43079.0,43078.0,0.35299586]
[1642701419545,1.88687048,43079.0,43078.0,0.33999586]
[1642701419746,1.88687048,43079.0,43074.0,0.4]
[1642701419951,0.28337794,43078.0,43069.0,0.001]
[1642701420145,0.00010208,43078.0,43075.0,6.877e-05]
[1642701420349,0.00010208,43078.0,43074.0,0.012]
[1642701420786,0.00010208,43078.0,43075.0,6.877e-05]
[1642701421190,0.28337794,43078.0,43075.0,6.877e-05]
[1642701421394,0.39949594,43078.0,43075.0,6.877e-05]
[1642701421589,0.11622008,43078.0,43075.0,6.877e-05]
[1642701422291,0.19128489,43074.0,43072.0,0.00012034]
[1642701422889,0.19138697,43074.0,43072.0,0.00012034]
[1642701423289,0.24944497,43074.0,43072.0,0.00012034]
[1642701423490,0.24934289,43074.0,43072.0,0.00012034]